bitfinex/quotes_BTCUSD_20230118
["timestamp","ask_amount","ask_price","bid_price","bid_amount"]
[1674054819782,1.57345781,21499.0,21498.0,0.01376493]
[1674054820305,1.35180538,21499.0,21498.0,0.01376493]
[1674054821616,1.57345781,21499.0,21498.0,0.01376493]
[1674054822125,1.0723661,21499.0,21498.0,0.01376493]
[1674054822624,0.96131707,21499.0,21498.0,0.01376493]
[1674054823148,0.64752307,21499.0,21498.0,0.01376493]
[1674054823406,0.5972,21499.0,21498.0,0.01376493]
[1674054823935,0.5972,21499.0,21498.0,0.34678593]
[1674054824766,0.5172,21499.0,21498.0,0.32499293]
[1674054825047,0.5442,21499.0,21498.0,0.01476493]
[1674054825304,0.5172,21499.0,21498.0,0.01276493]
[1674054825557,0.5232,21499.0,21498.0,0.03076493]
[1674054826072,0.5172,21499.0,21498.0,0.01276493]
[1674054826350,0.5442,21499.0,21498.0,0.01476493]
[1674054828574,0.5442,21499.0,21498.0,0.33534993]
[1674054828825,0.5442,21499.0,21498.0,0.40854993]
[1674054830110,0.5442,21499.0,21498.0,0.55854993]
[1674054831167,0.5442,21499.0,21498.0,0.63214993]
[1674054831690,0.5442,21499.0,21498.0,1.56246793]
[1674054832233,0.5442,21499.0,21498.0,2.68084351]
[1674054832494,0.5172,21499.0,21498.0,3.11410345]
[1674054832803,0.5242,21499.0,21498.0,2.68084351]
[1674054832995,0.5312,21499.0,21498.0,2.70284351]
[1674054833517,0.5172,21499.0,21498.0,2.68084351]
[1674054833763,0.01383578,21506.0,21499.0,0.15]
[1674054834019,0.01383578,21506.0,21505.0,0.0736]
[1674054834287,0.01383578,21506.0,21505.0,0.402877]
[1674054834545,0.01383578,21506.0,21505.0,0.329277]
[1674054834812,0.06353347,21506.0,21501.0,0.692952]
[1674054835048,0.15,21505.0,21502.0,0.0735]
[1674054835811,1.080022,21505.0,21501.0,0.07507217]
[1674054836066,1.080022,21505.0,21501.0,0.00097217]
[1674054836314,1.087022,21505.0,21502.0,0.022]
[1674054836628,1.19807103,21505.0,21502.0,0.022]
[1674054836840,0.323674,21504.0,21502.0,0.022]
[1674054837086,1.36465934,21505.0,21499.0,0.49257957]
[1674054837087,1.226627,21503.0,21499.0,0.49257957]
[1674054837359,0.930102,21503.0,21501.0,0.02]
[1674054837604,0.930102,21503.0,21499.0,0.49257957]
[1674054837866,0.465051,21503.0,21502.0,0.002]
[1674054838119,0.52030923,21504.0,21499.0,0.49257957]
[1674054838378,0.98535623,21504.0,21499.0,0.95771557]
[1674054838884,0.98535623,21504.0,21499.0,0.95271557]
[1674054839379,0.007,21503.0,21499.0,0.50757957]
[1674054839623,0.05628938,21502.0,21499.0,0.48757957]
[1674054839875,0.05628938,21502.0,21499.0,0.50757957]
[1674054840119,0.52136638,21502.0,21500.0,0.316508]
[1674054840403,0.05628938,21502.0,21499.0,0.50757957]
[1674054840643,0.930137,21503.0,21499.0,0.48757957]
[1674054840893,0.007,21502.0,21499.0,0.50757957]
[1674054841145,0.465069,21503.0,21500.0,0.319459]
[1674054841387,0.006,21502.0,21500.0,0.02]
[1674054841631,0.006,21502.0,21501.0,0.327402]
[1674054842315,0.465052,21503.0,21501.0,0.327402]
[1674054842569,0.52001211,21504.0,21500.0,0.465115]
[1674054842815,0.007,21503.0,21501.0,0.327954]
[1674054843085,0.930108,21503.0,21499.0,0.95270157]
[1674054843356,0.028,21502.0,21501.0,0.003]
[1674054843611,0.465073,21502.0,21499.0,0.48757957]
[1674054843883,0.465067,21503.0,21499.0,0.48757957]
[1674054844146,0.465075,21502.0,21499.0,0.50757957]
[1674054844393,0.930138,21503.0,21499.0,0.95271057]
[1674054844650,0.930135,21503.0,21499.0,0.95271657]
[1674054845169,0.465068,21503.0,21499.0,0.95271657]
[1674054845474,0.465068,21503.0,21499.0,1.41785357]
[1674054845686,0.465068,21503.0,21499.0,0.95271657]
[1674054845962,0.007,21502.0,21499.0,0.97271657]
[1674054846497,0.52001411,21504.0,21500.0,0.323727]
[1674054846758,0.007,21503.0,21500.0,0.465108]
[1674054847002,0.52001111,21504.0,21500.0,0.538708]
[1674054847003,0.52000911,21504.0,21500.0,0.538708]
[1674054847260,0.007,21502.0,21501.0,0.322238]
[1674054847538,0.06105778,21502.0,21500.0,0.0736]
[1674054847777,0.323509,21501.0,21500.0,0.02]
[1674054848011,1.252058,21501.0,21498.0,0.08722904]
[1674054848301,0.930188,21501.0,21500.0,0.02]
[1674054848563,0.930188,21501.0,21498.0,0.01372904]
[1674054848821,0.465353,21500.0,21498.0,0.01372904]
[1674054849048,1.23512,21499.0,21498.0,0.01372904]
[1674054849363,1.23512,21499.0,21498.0,0.01276493]
[1674054849593,0.930274,21499.0,21498.0,0.01276493]
[1674054850106,0.937274,21499.0,21498.0,0.03276493]
[1674054850888,1.516071,21499.0,21498.0,0.03276493]
[1674054851680,1.666071,21499.0,21498.0,0.03276493]
[1674054852436,1.509071,21499.0,21498.0,0.01276493]
[1674054852692,1.666071,21499.0,21498.0,0.03076493]
[1674054852979,1.509071,21499.0,21498.0,0.01276493]
[1674054853231,1.509071,21499.0,21498.0,0.01476493]
[1674054853232,1.257074,21499.0,21498.0,0.01476493]
[1674054853500,1.184074,21499.0,21498.0,0.01276493]
[1674054853753,1.725621,21499.0,21498.0,0.01476493]
[1674054854012,1.652621,21499.0,21498.0,0.01276493]
[1674054854264,1.725621,21499.0,21498.0,0.01476493]
[1674054854547,1.652621,21499.0,21498.0,0.01276493]
[1674054854770,1.725621,21499.0,21498.0,0.01476493]
[1674054855034,1.83667003,21499.0,21498.0,0.01476493]
[1674054855277,2.33053346,21499.0,21498.0,0.01476493]
[1674054855536,2.49712177,21499.0,21498.0,0.01170664]
[1674054855787,2.44948287,21499.0,21498.0,0.01170664]
[1674054856040,2.56016265,21499.0,21498.0,0.01170664]
[1674054856292,2.52220826,21499.0,21498.0,0.01170664]
[1674054856559,2.52220826,21499.0,21496.0,0.00670797]
[1674054856560,0.2233,21498.0,21496.0,0.00670797]
[1674054856821,2.162376,21497.0,21496.0,0.00670797]
[1674054857077,2.71930354,21497.0,21496.0,0.00670797]
[1674054857331,2.34678992,21497.0,21496.0,0.00670797]
[1674054857845,2.385676,21497.0,21496.0,0.00870797]
[1674054858110,2.49678992,21497.0,21496.0,0.00670797]
[1674054858409,2.69146079,21497.0,21496.0,0.00870797]
[1674054858627,3.19898545,21497.0,21496.0,0.00670797]
[1674054858879,3.23879989,21497.0,21496.0,0.00870797]
[1674054859171,3.03523743,21497.0,21496.0,0.00461209]
[1674054859734,0.15,21496.0,21495.0,0.00670782]
[1674054859928,0.84124893,21496.0,21495.0,0.00670782]
[1674054860183,0.15,21495.0,21492.0,0.00201893]
[1674054860440,0.15,21492.0,21489.0,0.00716391]
[1674054860704,2.77550394,21492.0,21489.0,0.00716391]
[1674054860968,2.94119117,21492.0,21489.0,0.00716391]
[1674054861227,2.83010743,21492.0,21489.0,0.00716391]
[1674054861513,3.24945701,21492.0,21489.0,0.00716391]
[1674054861770,3.78185849,21492.0,21489.0,0.00716391]
[1674054862036,3.53178746,21492.0,21491.0,9.7e-07]
[1674054862299,0.04944085,21491.0,21489.0,0.00716391]
[1674054862549,2.1437864,21490.0,21489.0,0.00716391]
[1674054863692,0.15,21489.0,21486.0,0.00725789]
[1674054863949,1.91712709,21489.0,21486.0,0.00725789]
[1674054864746,1.9172264,21489.0,21486.0,0.00725789]
[1674054865312,2.0082264,21489.0,21486.0,0.00725789]
[1674054865557,1.9346264,21489.0,21486.0,0.00725789]
[1674054866574,1.337848,21489.0,21486.0,0.00725789]
[1674054867144,1.83603491,21489.0,21486.0,0.00725789]
[1674054867366,1.98603491,21489.0,21486.0,0.00725789]
[1674054867937,1.46331475,21489.0,21486.0,0.00725789]
[1674054868161,1.98614987,21489.0,21486.0,0.00725789]
[1674054868379,2.00718312,21489.0,21486.0,0.00725789]
[1674054868828,0.82416999,21488.0,21486.0,0.00725789]
[1674054869042,2.555174,21488.0,21486.0,0.00725789]
[1674054869258,2.632074,21488.0,21486.0,0.00725789]
[1674054869707,2.63204285,21488.0,21486.0,0.00725789]
[1674054870834,2.72404285,21488.0,21486.0,0.00725789]
[1674054871312,2.72295021,21488.0,21486.0,0.00725789]
[1674054871978,2.12597037,21488.0,21486.0,0.00725789]
[1674054873932,1.37597037,21488.0,21486.0,0.00725789]
[1674054874181,1.07191137,21488.0,21487.0,0.05557554]
[1674054874658,1.07191137,21488.0,21487.0,0.00678554]
[1674054875156,1.38354837,21488.0,21487.0,0.00678554]
[1674054875690,1.39799437,21488.0,21487.0,0.00678554]
[1674054875947,1.07191137,21488.0,21487.0,0.00678554]
[1674054876908,1.39132637,21488.0,21487.0,0.00678554]
[1674054877380,1.39106237,21488.0,21487.0,0.00678554]
[1674054878153,1.07191137,21488.0,21487.0,0.00678554]
[1674054878401,1.39333537,21488.0,21487.0,0.00678554]
[1674054878895,1.39435937,21488.0,21487.0,0.00678554]
[1674054879164,1.07191137,21488.0,21487.0,0.00678554]
[1674054879885,1.38238737,21488.0,21487.0,0.00678554]
[1674054880638,1.37760537,21488.0,21487.0,0.00678554]
[1674054882304,1.07191137,21488.0,21487.0,0.00678554]
[1674054883329,1.37679537,21488.0,21487.0,0.00678554]
[1674054883818,1.52679537,21488.0,21487.0,0.00678554]
[1674054885308,1.52679537,21488.0,21487.0,0.00319044]
[1674054886049,1.37679537,21488.0,21487.0,0.00319044]
[1674054886298,1.52679537,21488.0,21487.0,0.00319044]
[1674054886817,1.43479537,21488.0,21487.0,0.00319044]
[1674054887560,1.83139317,21488.0,21487.0,0.00319044]
[1674054887808,1.96356031,21488.0,21487.0,0.00419044]
[1674054888047,1.88056031,21488.0,21487.0,0.00319044]
[1674054888295,2.07453837,21488.0,21487.0,0.00419044]
[1674054889038,2.19183096,21488.0,21486.0,0.00725789]
[1674054889315,0.96494113,21487.0,21486.0,0.00725789]
[1674054889557,2.69553513,21487.0,21486.0,0.00725789]
[1674054889815,2.80651319,21487.0,21486.0,0.00725789]
[1674054890073,3.4217132,21487.0,21486.0,0.00725789]
[1674054890336,3.47719487,21487.0,21486.0,0.00725789]
[1674054890704,3.71981596,21487.0,21486.0,0.0022874]
[1674054890867,3.99752531,21487.0,21486.0,0.0022874]
[1674054891115,3.71981596,21487.0,21486.0,0.0022874]
[1674054891367,3.53267611,21487.0,21486.0,0.0032874]
[1674054891627,3.53267611,21487.0,21486.0,4e-07]
[1674054891628,3.99720401,21487.0,21486.0,4e-07]
[1674054891887,3.85926304,21487.0,21486.0,0.0010004]
[1674054892144,4.08134444,21487.0,21486.0,4e-07]
[1674054892403,3.85926304,21487.0,21486.0,4e-07]
[1674054892946,3.33668915,21487.0,21486.0,4e-07]
[1674054893224,3.26101426,21487.0,21486.0,4e-07]
[1674054893477,3.5589931,21487.0,21486.0,4e-07]
[1674054893990,3.33679138,21487.0,21486.0,4e-07]
[1674054894249,3.43082765,21487.0,21486.0,4e-07]
[1674054896536,3.83650501,21487.0,21486.0,4e-07]
[1674054897087,3.83831234,21487.0,21486.0,4e-07]
[1674054898359,3.46686967,21487.0,21486.0,4e-07]
[1674054898556,3.31976967,21487.0,21486.0,4e-07]
[1674054898795,3.69186395,21487.0,21486.0,4e-07]
[1674054899055,3.64983622,21487.0,21486.0,4e-07]
[1674054899552,3.31978087,21487.0,21486.0,4e-07]
[1674054900073,2.98558203,21487.0,21486.0,4e-07]
[1674054900864,2.93202979,21487.0,21486.0,4e-07]
[1674054901075,2.63366806,21487.0,21486.0,4e-07]
[1674054901350,2.02098409,21487.0,21485.0,0.00672594]
[1674054901629,2.05951575,21486.0,21485.0,0.00672594]
[1674054901874,2.6560155,21486.0,21485.0,0.00672594]
[1674054902141,2.8060155,21486.0,21485.0,0.00672594]
[1674054902372,3.09788621,21486.0,21485.0,0.00672594]
[1674054902628,3.09788621,21486.0,21485.0,0.00772594]
[1674054902889,3.09788621,21486.0,21485.0,0.00672594]
[1674054903153,3.18288621,21486.0,21485.0,0.00772594]
[1674054904149,3.14546478,21486.0,21485.0,0.00772594]
[1674054904408,2.70359407,21486.0,21485.0,0.00772594]
[1674054904671,2.51933369,21486.0,21485.0,0.00772594]
[1674054904924,2.96542659,21486.0,21485.0,0.00772594]
[1674054905208,3.25716146,21486.0,21485.0,0.00772594]
[1674054905425,0.15,21485.0,21483.0,0.00727591]
[1674054905699,2.177163,21484.0,21483.0,0.00727591]
[1674054906064,2.51408378,21484.0,21483.0,0.00727591]
[1674054906747,2.51408378,21484.0,21483.0,0.00827591]
[1674054907018,2.51408378,21484.0,21483.0,0.00727591]
[1674054907241,2.59908378,21484.0,21483.0,0.00827591]
[1674054907999,2.65252677,21484.0,21483.0,0.00827591]
[1674054908244,2.98673558,21484.0,21483.0,0.00827591]
[1674054908493,3.3057338,21484.0,21483.0,0.00827591]
[1674054908758,3.10094017,21484.0,21483.0,0.00827591]
[1674054909018,0.0736,21483.0,21479.0,0.00793417]
[1674054909281,0.22279557,21480.0,21479.0,0.00793417]
[1674054909537,2.64083186,21480.0,21479.0,0.00793417]
[1674054909832,3.08886396,21480.0,21479.0,0.00793417]
[1674054910033,2.71642624,21480.0,21479.0,0.00793417]
[1674054910540,2.51123178,21480.0,21479.0,0.00793417]
[1674054910803,2.93686183,21480.0,21479.0,0.00793417]
[1674054911095,2.54746745,21480.0,21479.0,0.00793417]
[1674054911325,3.01189662,21480.0,21479.0,0.00793417]
[1674054911571,2.86271821,21480.0,21479.0,0.00793417]
[1674054912332,2.77171821,21480.0,21479.0,0.00793417]
[1674054912595,3.23472154,21480.0,21479.0,0.00793417]
[1674054912887,2.5843662,21480.0,21479.0,0.00793417]
[1674054913119,3.01260138,21480.0,21479.0,0.00793417]
[1674054913707,3.01248784,21480.0,21479.0,0.00793417]
[1674054913910,3.08482466,21480.0,21479.0,0.00793417]
[1674054914177,2.43602965,21480.0,21479.0,0.00793417]
[1674054914438,2.60289512,21480.0,21479.0,0.00793417]
[1674054914692,2.43602996,21480.0,21479.0,0.00793417]
[1674054914955,2.12071496,21480.0,21479.0,0.00793417]
[1674054915222,2.42961896,21480.0,21479.0,0.00793417]
[1674054915483,2.12081496,21480.0,21479.0,0.00793417]
[1674054915739,2.4861542,21480.0,21479.0,0.00793417]
[1674054915990,2.59739736,21480.0,21479.0,0.00793417]
[1674054916239,2.59734536,21480.0,21479.0,0.00793417]
[1674054916494,2.59740536,21480.0,21479.0,0.00793417]
[1674054917546,2.74740536,21480.0,21479.0,0.00793417]
[1674054918320,2.59743913,21480.0,21476.0,0.72646407]
[1674054918542,0.310536,21479.0,21476.0,1.10698733]
[1674054918834,0.931184,21478.0,21476.0,1.10698733]
[1674054919089,0.556728,21480.0,21477.0,0.0736]
[1674054919353,0.556728,21480.0,21479.0,0.0735]
[1674054919354,0.465721,21480.0,21479.0,0.0735]
[1674054919617,0.465721,21480.0,21479.0,0.38142]
[1674054919871,0.465721,21480.0,21479.0,0.0735]
[1674054920707,1.04254693,21480.0,21477.0,0.0736]
[1674054920928,1.17647502,21480.0,21479.0,0.001]
[1674054921182,1.17647502,21480.0,21477.0,0.0736]
[1674054921183,1.09347502,21480.0,21477.0,0.0736]
[1674054921515,1.26034018,21480.0,21477.0,0.0736]
[1674054921656,1.09347502,21480.0,21477.0,0.0736]
[1674054921911,0.93127,21480.0,21477.0,0.0736]
[1674054922165,1.01427,21480.0,21479.0,0.0743]
[1674054922416,0.93127,21480.0,21479.0,0.0733]
[1674054922679,0.96121,21480.0,21479.0,0.0733]
[1674054922938,0.93121,21480.0,21479.0,0.0733]
[1674054923207,1.01421,21480.0,21479.0,0.0743]
[1674054923459,0.0831,21480.0,21479.0,0.0743]
[1674054923721,0.0831,21480.0,21479.0,1.079042]
[1674054924032,0.0831,21480.0,21479.0,1.681178]
[1674054925068,0.0831,21480.0,21479.0,2.23042165]
[1674054925356,0.0831,21480.0,21479.0,2.64378851]
[1674054925610,0.034,21480.0,21479.0,2.57297391]
[1674054925884,0.11127693,21488.0,21480.0,0.15]
[1674054926144,0.27814209,21488.0,21486.0,0.0736]
[1674054926695,0.11127693,21488.0,21486.0,0.0736]
[1674054926946,0.33733866,21489.0,21487.0,0.072]
[1674054927217,0.33733866,21489.0,21488.0,0.385736]
[1674054927218,0.1704735,21489.0,21488.0,0.385736]
[1674054927727,0.05919657,21489.0,21488.0,0.0732]
[1674054927995,0.045,21488.0,21486.0,0.0776]
[1674054928249,0.05895983,21488.0,21486.0,0.0736]
[1674054928525,0.05895983,21488.0,21487.0,0.315326]
[1674054928782,0.50057626,21493.0,21487.0,0.43565505]
[1674054929045,0.50057089,21495.0,21492.0,0.23261]
[1674054929555,0.3754322,21499.0,21493.0,3.41790059]
[1674054929557,0.0053958,21500.0,21493.0,3.41790059]
[1674054929558,0.0053958,21500.0,21493.0,3.69457767]
[1674054929815,0.0001,21500.0,21498.0,0.2797]
[1674054930072,0.0001,21500.0,21499.0,0.912204]
[1674054930899,0.0001,21500.0,21499.0,1.72873829]
[1674054931179,0.0001,21500.0,21499.0,1.341904]
[1674054931447,0.0001,21500.0,21499.0,1.433904]
[1674054931707,0.0001,21500.0,21499.0,1.77770618]
[1674054932016,0.01383578,21506.0,21500.0,0.51493506]
[1674054932277,0.01383578,21506.0,21505.0,0.1466]
[1674054932560,0.01383578,21506.0,21505.0,0.396761]
[1674054933362,0.04192829,21506.0,21505.0,0.323661]
[1674054933619,0.04192829,21506.0,21502.0,0.0736]
[1674054933620,0.00483399,21504.0,21502.0,0.0736]
[1674054934145,0.19192829,21506.0,21503.0,0.391421]
[1674054934146,0.04192829,21506.0,21503.0,0.391421]
[1674054934409,0.04192829,21506.0,21505.0,0.0731]
[1674054934410,0.04292829,21506.0,21505.0,0.0731]
[1674054934676,0.04292829,21506.0,21505.0,0.463849]
[1674054934677,0.04192829,21506.0,21505.0,0.463849]
[1674054935458,0.04192829,21506.0,21505.0,0.44923615]
[1674054935720,0.01306895,21507.0,21506.0,0.15]
[1674054936030,0.01306895,21507.0,21506.0,2.72786576]
[1674054936283,0.01306895,21507.0,21506.0,2.72766576]
[1674054936846,0.01306895,21507.0,21506.0,2.58456221]
[1674054937103,0.01306895,21507.0,21506.0,2.11957621]
[1674054937622,0.01306895,21507.0,21506.0,1.76677621]
[1674054937625,0.01306895,21507.0,21506.0,1.83987621]
[1674054938381,0.01306895,21507.0,21506.0,1.93187621]
[1674054938608,0.01306895,21507.0,21506.0,1.83987621]
[1674054938891,0.01306895,21507.0,21506.0,1.93187621]
[1674054939162,0.01306895,21507.0,21506.0,2.25726297]
[1674054939420,0.01306895,21507.0,21506.0,2.34926297]
[1674054939679,0.01306895,21507.0,21506.0,2.40726297]
[1674054939944,0.01306895,21507.0,21506.0,2.77826297]
[1674054940191,0.01318536,21508.0,21507.0,0.1761379]
[1674054940478,0.01318536,21508.0,21507.0,1.82041166]
[1674054940716,0.01318536,21508.0,21507.0,2.25969205]
[1674054940971,0.01318536,21508.0,21507.0,2.53979205]
[1674054941488,0.01318536,21508.0,21507.0,2.52936929]
[1674054941754,0.01318536,21508.0,21507.0,0.4537609]
[1674054942259,0.47812836,21508.0,21507.0,0.5457609]
[1674054942775,0.47812836,21508.0,21507.0,0.3617609]
[1674054943025,0.01318536,21508.0,21507.0,0.3617609]
[1674054943277,0.01418536,21508.0,21507.0,0.1111379]
[1674054943544,0.47912836,21508.0,21507.0,0.1111379]
[1674054943810,1.09407136,21508.0,21507.0,0.1111379]
[1674054944358,1.09407136,21508.0,21507.0,0.0261379]
[1674054944359,1.09307136,21508.0,21507.0,0.0261379]
[1674054944619,1.42641436,21508.0,21507.0,0.1101379]
[1674054944872,1.09950949,21508.0,21507.0,0.1101379]
[1674054945184,1.41038149,21508.0,21507.0,0.1101379]
[1674054945394,1.09950949,21508.0,21507.0,0.1101379]
[1674054945897,1.41177649,21508.0,21507.0,0.1101379]
[1674054946923,1.09950949,21508.0,21507.0,0.1101379]
[1674054947743,0.01418536,21508.0,21507.0,0.1101379]
[1674054947973,0.01418536,21508.0,21507.0,0.97845784]
[1674054948245,0.01306895,21509.0,21508.0,0.02837071]
[1674054948503,0.01306895,21509.0,21508.0,1.26100771]
[1674054949076,0.01306895,21509.0,21508.0,1.38210771]
[1674054949276,0.01283131,21510.0,21509.0,0.0261379]
[1674054949530,0.01283131,21510.0,21509.0,0.3387459]
[1674054950568,0.01283131,21510.0,21509.0,0.9247669]
[1674054950820,0.01283131,21510.0,21509.0,0.87545521]
[1674054951072,0.01283131,21510.0,21509.0,0.95545521]
[1674054951325,0.01283131,21510.0,21509.0,1.42037621]
[1674054952329,0.01283131,21510.0,21509.0,1.88529721]
[1674054954569,0.01283131,21510.0,21509.0,1.34037621]
[1674054954816,0.01283131,21510.0,21509.0,1.89829721]
[1674054956088,0.01283131,21510.0,21509.0,1.43337621]
[1674054956335,0.01283131,21510.0,21509.0,0.96845521]
[1674054956612,0.01283131,21510.0,21509.0,0.5528459]
[1674054956856,0.94750188,21510.0,21508.0,0.02837071]
[1674054957119,0.94750188,21510.0,21508.0,7.071e-05]
[1674054957120,0.342145,21509.0,21508.0,7.071e-05]
[1674054957375,1.271987,21509.0,21507.0,0.0261379]
[1674054957630,0.596019,21508.0,21507.0,0.0261379]
[1674054957971,1.53086437,21508.0,21507.0,0.0261379]
[1674054958196,1.53086437,21508.0,21500.0,0.0002]
[1674054958197,0.15,21507.0,21500.0,0.0002]
[1674054958462,1.51613,21505.0,21501.0,0.00097856]
[1674054958717,1.39503,21505.0,21502.0,0.47507662]
[1674054958969,0.93002,21505.0,21502.0,0.47507662]
[1674054959232,0.34385836,21506.0,21502.0,0.47507662]
[1674054959476,0.46501,21505.0,21503.0,0.30457]
[1674054959786,0.46501,21505.0,21502.0,0.47507662]
[1674054960009,0.465008,21505.0,21502.0,0.47507662]
[1674054960255,0.930016,21505.0,21502.0,0.47507662]
[1674054960566,0.930016,21505.0,21500.0,0.00119868]
[1674054960765,0.00542346,21504.0,21500.0,0.00119868]
[1674054961025,0.47045946,21504.0,21500.0,0.00119868]
[1674054961286,0.59155746,21504.0,21500.0,0.00119868]
[1674054961547,0.15,21503.0,21500.0,0.00119868]
[1674054961856,0.93548646,21504.0,21500.0,0.00119868]
[1674054962075,0.93550746,21504.0,21500.0,0.00119868]
[1674054962333,0.93550746,21504.0,21501.0,0.42967479]
[1674054962334,0.47045746,21504.0,21501.0,0.42967479]
[1674054962595,0.47045746,21504.0,21502.0,0.321263]
[1674054962846,0.00542346,21504.0,21503.0,0.281565]
[1674054963143,0.00542346,21504.0,21501.0,0.89476179]
[1674054963361,0.00542346,21504.0,21502.0,0.308368]
[1674054963635,0.04,21504.0,21503.0,0.7065204]
[1674054963879,0.7539,21505.0,21503.0,0.7065204]
[1674054964134,0.93479864,21506.0,21504.0,0.308337]
[1674054964418,0.00481964,21506.0,21505.0,0.29443]
[1674054964709,0.46981964,21506.0,21501.0,0.640495]
[1674054964955,0.93480564,21506.0,21501.0,0.465078]
[1674054965481,0.93480564,21506.0,21502.0,0.326444]
[1674054965732,0.09,21505.0,21503.0,0.276382]
[1674054965989,0.465013,21505.0,21504.0,0.316237]
[1674054966258,0.930021,21505.0,21500.0,1.38880104]
[1674054966502,0.15,21504.0,21500.0,0.92370504]
[1674054966758,0.465038,21504.0,21501.0,0.316818]
[1674054967030,0.465038,21504.0,21502.0,0.28604]
[1674054967275,0.465038,21504.0,21503.0,0.316755]
[1674054967526,0.930067,21504.0,21500.0,0.45860704]
[1674054967792,0.465029,21504.0,21500.0,0.45860704]
[1674054968052,0.465029,21504.0,21501.0,0.318758]
[1674054968438,0.465029,21504.0,21502.0,0.2841]
[1674054968594,0.475034,21504.0,21502.0,0.2841]
[1674054968864,0.94524312,21504.0,21503.0,0.318727]
[1674054969162,0.94524312,21504.0,21500.0,0.45860704]
[1674054969418,0.15,21503.0,21500.0,0.00119868]
[1674054969669,0.465073,21502.0,21500.0,0.00119868]
[1674054969932,0.465078,21502.0,21501.0,0.337492]
[1674054970208,0.930151,21502.0,21501.0,0.337492]
[1674054970726,0.930151,21502.0,21500.0,0.0002]
[1674054971038,1.05649326,21502.0,21500.0,0.0002]
[1674054971285,0.15,21501.0,21500.0,0.0002]
[1674054971552,1.080188,21501.0,21500.0,0.0002]
[1674054972572,1.171188,21501.0,21500.0,0.0002]
[1674054973357,1.613553,21501.0,21500.0,0.0002]
[1674054973629,1.60843,21501.0,21500.0,0.0002]
[1674054973882,1.292288,21501.0,21500.0,0.0002]
[1674054974139,1.142288,21501.0,21500.0,0.0002]
[1674054974395,1.080188,21501.0,21500.0,0.0002]
[1674054974650,1.172188,21501.0,21500.0,0.0002]
[1674054975194,1.022188,21501.0,21500.0,0.0002]
[1674054975739,0.930188,21501.0,21500.0,0.0002]
[1674054975985,1.022188,21501.0,21500.0,0.0002]
[1674054976298,0.242,21501.0,21500.0,0.0002]
[1674054976550,0.242,21501.0,21500.0,0.05378603]
[1674054976551,0.092,21501.0,21500.0,0.05378603]
[1674054976797,0.092,21501.0,21500.0,0.83384203]
[1674054977064,0.00466942,21503.0,21501.0,0.184]
[1674054977309,0.00466942,21503.0,21502.0,0.287936]
[1674054979332,0.00466942,21503.0,21502.0,0.290936]
[1674054980102,0.61972042,21503.0,21502.0,0.290936]
[1674054980331,0.61972042,21503.0,21502.0,0.003]
[1674054980827,1.08477142,21503.0,21502.0,0.003]
[1674054981574,0.93477142,21503.0,21502.0,0.003]
[1674054982337,1.08477142,21503.0,21502.0,0.003]
[1674054982602,0.93477142,21503.0,21502.0,0.003]
[1674054982853,0.930102,21503.0,21502.0,0.003]
[1674054983372,1.080102,21503.0,21502.0,0.003]
[1674054985142,1.08501386,21503.0,21502.0,0.003]
[1674054985392,0.93501386,21503.0,21502.0,0.003]
[1674054986161,1.05611386,21503.0,21502.0,0.003]
[1674054986428,1.52386286,21503.0,21502.0,0.003]
[1674054986957,2.05222659,21503.0,21502.0,0.003]
[1674054987748,0.15,21502.0,21501.0,0.184]
[1674054987957,1.80363316,21502.0,21501.0,0.184]
[1674054988212,2.04473316,21502.0,21501.0,0.184]
[1674054988731,0.15,21501.0,21498.0,0.00680778]
[1674054989012,0.1207,21499.0,21498.0,0.00680778]
[1674054989236,1.046246,21499.0,21498.0,0.00680778]
[1674054989484,1.511383,21499.0,21498.0,0.00680778]
[1674054990303,1.568383,21499.0,21498.0,0.00980778]
[1674054990828,2.07179655,21499.0,21498.0,0.00680778]
[1674054991314,0.15,21498.0,21493.0,1.23438192]
[1674054991636,0.2422,21494.0,21493.0,1.23438192]
[1674054991840,2.418277,21494.0,21493.0,1.23438192]
[1674054992112,2.418277,21494.0,21493.0,1.23342459]
[1674054992358,2.606477,21494.0,21493.0,1.23342459]
[1674054992613,3.01869054,21494.0,21493.0,1.05132459]
[1674054992871,3.01869054,21494.0,21493.0,0.78341959]
[1674054993128,0.15,21493.0,21491.0,0.00693327]
[1674054993399,2.14072892,21492.0,21491.0,0.00693327]
[1674054993650,2.38292892,21492.0,21491.0,0.00693327]
[1674054994239,2.38771158,21492.0,21491.0,0.00693327]
[1674054994424,2.53771158,21492.0,21491.0,0.00793327]
[1674054994670,2.53771158,21492.0,21491.0,0.00693327]
[1674054994922,2.53771158,21492.0,21491.0,0.00793327]
[1674054994923,2.61871158,21492.0,21491.0,0.00793327]
[1674054995188,3.22421158,21492.0,21491.0,0.00793327]
[1674054995452,3.22501158,21492.0,21491.0,0.00793327]
[1674054996217,2.61861158,21492.0,21491.0,0.00793327]
[1674054996725,1.81633266,21492.0,21491.0,0.00793327]
[1674054996981,1.48164966,21492.0,21491.0,0.00793327]
[1674054997233,1.80599866,21492.0,21491.0,0.00793327]
[1674054997498,1.80493966,21492.0,21491.0,0.00793327]
[1674054997749,1.80679866,21492.0,21491.0,0.00793327]
[1674054997996,1.92789866,21492.0,21491.0,0.00793327]
[1674054998770,1.60274966,21492.0,21491.0,0.00793327]
[1674054999025,1.94060566,21492.0,21491.0,0.00793327]
[1674054999357,1.60274966,21492.0,21491.0,0.00793327]
[1674054999545,0.3,21492.0,21491.0,0.50222021]
[1674054999814,0.3,21492.0,21491.0,0.84607226]
[1674055000072,0.3,21492.0,21491.0,1.26435421]
[1674055000660,1e-08,21492.0,21491.0,0.79804321]
[1674055001110,1e-08,21492.0,21491.0,1.38135421]
[1674055001619,1e-08,21492.0,21491.0,1.26335421]
[1674055001886,1e-08,21492.0,21491.0,1.50195421]
[1674055002426,1e-08,21492.0,21491.0,1.26335421]
[1674055002664,1e-08,21492.0,21491.0,0.87762727]
[1674055003880,1e-08,21492.0,21491.0,0.99662727]
[1674055004373,1e-08,21492.0,21491.0,1.34293827]
[1674055004875,1e-08,21492.0,21491.0,1.46093827]
[1674055006339,1e-08,21492.0,21491.0,0.42175627]
[1674055007929,1e-08,21492.0,21491.0,1.35237827]
[1674055008664,1e-08,21492.0,21491.0,0.93437827]
[1674055008874,1e-08,21492.0,21491.0,1.05137827]
[1674055009165,1e-08,21492.0,21491.0,0.00375627]
[1674055009416,1e-08,21492.0,21491.0,0.12075627]